[Event "Championnat d'Europe de Blitz"]
[Date "2024.12.09"]
[White "Dragnev, Valentin"]
[Black "Muradli, Mahammad"]
[WhiteElo "2563"]
[BlackElo "2588"]
[Round "9.12"]
[Result "0-1"]
[TimeControl "180+2"]

1. e4 {[%clk 00:03:03]} c5 {[%emt 00:00:03] [%clk 00:03:00]} 2. Nf3 {[%emt
00:00:03] [%clk 00:03:04]} d6 {[%emt 00:00:01] [%clk 00:03:01]} 3. Bb5+ {[%emt
00:00:02] [%clk 00:03:04]} Bd7 {[%clk 00:03:02]} 4. Bxd7+ {[%emt 00:00:01] [%clk
00:03:04]} Nxd7 {[%emt 00:00:01] [%clk 00:03:03]} 5. c4 {[%emt 00:00:02] [%clk
00:03:04]} Ne5 {[%emt 00:00:06] [%clk 00:03:00]} 6. O-O {[%emt 00:00:08] [%clk
00:02:57]} Nxf3+ {[%emt 00:00:05] [%clk 00:02:58]} 7. Qxf3 {[%clk 00:02:58]} e6
{[%emt 00:00:24] [%clk 00:02:36]} 8. Nc3 {[%emt 00:00:30] [%clk 00:02:30]} Ne7
{[%emt 00:00:02] [%clk 00:02:36]} 9. d3 {[%emt 00:00:05] [%clk 00:02:27]} Nc6
{[%emt 00:00:02] [%clk 00:02:37]} 10. Qg3 {[%emt 00:00:14] [%clk 00:02:15]} g6
{[%emt 00:00:39] [%clk 00:02:01]} 11. Bg5 {[%emt 00:00:01] [%clk 00:02:15]} Be7
{[%emt 00:00:08] [%clk 00:01:56]} 12. Bh6 {[%emt 00:00:02] [%clk 00:02:14]} Bh4
{[%emt 00:00:09] [%clk 00:01:49]} 13. Qh3 {[%emt 00:00:21] [%clk 00:01:54]} Bf6
{[%emt 00:00:03] [%clk 00:01:48]} 14. Kh1 {[%emt 00:00:28] [%clk 00:01:29]} a6
{[%emt 00:00:02] [%clk 00:01:48]} 15. Rab1 {[%emt 00:00:15] [%clk 00:01:15]} g5
{[%emt 00:00:16] [%clk 00:01:35]} 16. f4 {[%emt 00:00:06] [%clk 00:01:12]} gxf4
{[%emt 00:00:03] [%clk 00:01:33]} 17. Bxf4 {[%emt 00:00:07] [%clk 00:01:07]} Be5
{[%emt 00:00:09] [%clk 00:01:27]} 18. Ne2 {[%emt 00:00:08] [%clk 00:01:00]} Qe7
{[%emt 00:00:07] [%clk 00:01:22]} 19. a3 {[%emt 00:00:13] [%clk 00:00:50]} O-O-O
{[%emt 00:00:23] [%clk 00:01:01]} 20. b4 {[%clk 00:00:51]} Bxf4 {[%emt 00:00:08]
[%clk 00:00:54]} 21. Rxf4 {[%emt 00:00:02] [%clk 00:00:51]} Ne5 {[%emt 00:00:02]
[%clk 00:00:54]} 22. d4 {[%emt 00:00:28] [%clk 00:00:26]} cxd4 {[%emt 00:00:13]
[%clk 00:00:43]} 23. Nxd4 {[%emt 00:00:01] [%clk 00:00:27]} Qc7 {[%emt 00:00:25]
[%clk 00:00:20]} 24. b5 {[%emt 00:00:02] [%clk 00:00:27]} a5 {[%emt 00:00:02]
[%clk 00:00:21]} 25. b6 {[%emt 00:00:02] [%clk 00:00:26]} Qxc4 {[%emt 00:00:09]
[%clk 00:00:14]} 26. Nb3 {[%emt 00:00:10] [%clk 00:00:18]} Kb8 {[%emt 00:00:07]
[%clk 00:00:10]} 27. Nxa5 {[%emt 00:00:06] [%clk 00:00:13]} Qc2 {[%clk
00:00:11]} 28. Rff1 {[%emt 00:00:02] [%clk 00:00:13]} Rc8 {[%emt 00:00:03] [%clk
00:00:10]} 29. Qh4 {[%emt 00:00:06] [%clk 00:00:08]} Rhg8 {[%emt 00:00:01] [%clk
00:00:11]} 30. Qf2 {[%emt 00:00:06] [%clk 00:00:04]} Qxf2 {[%emt 00:00:08] [%clk
00:00:05]} 31. Rxf2 {[%emt 00:00:01] [%clk 00:00:06]} Rc3 {[%clk 00:00:06]} 32.
h3 {[%emt 00:00:02] [%clk 00:00:06]} Rxa3 {[%clk 00:00:07]} 33. Nb3 {[%emt
00:00:01] [%clk 00:00:06]} Ra4 {[%emt 00:00:05] [%clk 00:00:05]} 34. Rd2 {[%emt
00:00:02] [%clk 00:00:06]} Nc4 {[%emt 00:00:02] [%clk 00:00:05]} 35. Rd4 {[%emt
00:00:03] [%clk 00:00:05]} Rb4 {[%emt 00:00:01] [%clk 00:00:06]} 36. Ra1 {[%emt
00:00:02] [%clk 00:00:05]} Rxb3 {[%emt 00:00:04] [%clk 00:00:04]} 37. Rxc4
{[%clk 00:00:06]} Rxb6 {[%clk 00:00:06]} 38. Rf1 {[%emt 00:00:02] [%clk
00:00:06]} Rg7 {[%emt 00:00:02] [%clk 00:00:06]} 39. Rc3 {[%emt 00:00:02] [%clk
00:00:06]} Rb4 {[%emt 00:00:03] [%clk 00:00:05]} 40. Rd3 {[%emt 00:00:02] [%clk
00:00:06]} Kc7 {[%emt 00:00:03]} 41. Rc1+ {[%clk 00:00:06]} Kd7 {[%emt 00:00:02]
[%clk 00:00:05]} 42. Rcd1 {[%emt 00:00:02] [%clk 00:00:07]} Rb6 {[%clk
00:00:07]} 43. Kh2 {[%emt 00:00:02] [%clk 00:00:07]} Rg5 {[%emt 00:00:01] [%clk
00:00:08]} 44. h4 {[%emt 00:00:01] [%clk 00:00:08]} Re5 {[%emt 00:00:01] [%clk
00:00:09]} 45. Rf1 {[%emt 00:00:01] [%clk 00:00:08]} Ke7 {[%clk 00:00:11]} 46.
Rdf3 {[%emt 00:00:01] [%clk 00:00:09]} f5 {[%emt 00:00:09] [%clk 00:00:04]} 47.
exf5 {[%emt 00:00:01] [%clk 00:00:10]} exf5 {[%clk 00:00:05]} 48. Rxf5 {[%emt
00:00:06] [%clk 00:00:06]} Rb4 {[%emt 00:00:05]} 49. Rf7+ {[%emt 00:00:02] [%clk
00:00:05]} Ke6 {[%clk 00:00:04]} 50. Rxh7 {[%emt 00:00:01] [%clk 00:00:06]} b5
{[%emt 00:00:02] [%clk 00:00:04]} 51. Rh6+ {[%clk 00:00:07]} Kd7 {[%emt
00:00:01] [%clk 00:00:05]} 52. Rd1 {[%emt 00:00:05] [%clk 00:00:04]} d5 {[%emt
00:00:02] [%clk 00:00:05]} 53. Rf1 {[%emt 00:00:02] [%clk 00:00:04]} Re6 {[%emt
00:00:01] [%clk 00:00:06]} 54. Rh5 {[%emt 00:00:02] [%clk 00:00:04]} Kc6 {[%emt
00:00:02] [%clk 00:00:06]} 55. Ra1 {[%emt 00:00:01] [%clk 00:00:04]} Ra4 {[%emt
00:00:02] [%clk 00:00:07]} 56. Rc1+ {[%clk 00:00:05]} Rc4 {[%emt 00:00:01] [%clk
00:00:08]} 57. Ra1 {[%clk 00:00:07]} Kc5 {[%clk 00:00:10]} 58. Kh3 {[%emt
00:00:02] [%clk 00:00:06]} Re3+ {[%emt 00:00:02] [%clk 00:00:09]} 59. g3 {[%emt
00:00:02] [%clk 00:00:07]} Rcc3 {[%clk 00:00:11]} 60. Rg5 {[%clk 00:00:09]} Kc4
{[%emt 00:00:06] [%clk 00:00:08]} 61. h5 {[%clk 00:00:10]} b4 {[%emt 00:00:03]
[%clk 00:00:07]} 62. h6 {[%clk 00:00:11]} Re8 {[%emt 00:00:03] [%clk 00:00:06]}
63. h7 {[%emt 00:00:02] [%clk 00:00:10]} Rh8 {[%emt 00:00:01] [%clk 00:00:07]}
64. Rg7 {[%emt 00:00:01] [%clk 00:00:10]} b3 {[%emt 00:00:09]} 65. Rc7+ {[%clk
00:00:07]} Kd3 {[%clk 00:00:06]} 66. Rb7 {[%emt 00:00:04] [%clk 00:00:06]} Kc2
{[%emt 00:00:01] [%clk 00:00:07]} 67. Rf1 {[%emt 00:00:03] [%clk 00:00:05]} d4
{[%emt 00:00:04] [%clk 00:00:06]} 68. Rf2+ {[%clk 00:00:06]} Kd3 {[%clk
00:00:07]} 69. Rff7 {[%emt 00:00:05] [%clk 00:00:04]} Kc2 {[%emt 00:00:01] [%clk
00:00:07]} 70. Rf2+ {[%emt 00:00:01] [%clk 00:00:04]} Kd3 {[%emt 00:00:01] [%clk
00:00:08]} 71. Rff7 {[%emt 00:00:02] [%clk 00:00:05]} Ke3 {[%emt 00:00:04] [%clk
00:00:05]} 72. Rfe7+ {[%emt 00:00:04] [%clk 00:00:04]} Kd2 {[%emt 00:00:01]
[%clk 00:00:06]} 73. Rg7 {[%emt 00:00:01] [%clk 00:00:05]} Kc2 {[%emt 00:00:05]
[%clk 00:00:04]} 74. Rg8 {[%emt 00:00:01] [%clk 00:00:05]} Rxh7+ {[%emt
00:00:02] [%clk 00:00:03]} 75. Rxh7 {[%emt 00:00:01] [%clk 00:00:06]} b2 {[%clk
00:00:05]} 76. Rb7 {[%emt 00:00:04] [%clk 00:00:04]} b1=Q {[%emt 00:00:02]} 77.
Rxb1 {[%emt 00:00:01] [%clk 00:00:05]} Kxb1 {[%clk 00:00:07]} 78. Rd8 {[%emt
00:00:02] [%clk 00:00:05]} d3 {[%emt 00:00:01] [%clk 00:00:08]} 79. Kh4 {[%emt
00:00:02] [%clk 00:00:05]} Kc2 {[%emt 00:00:04]} 80. g4 {[%emt 00:00:01] [%clk
00:00:04]} d2 {[%clk 00:00:08]} 81. g5 {[%emt 00:00:01] [%clk 00:00:05]} Rd3
{[%clk 00:00:10]} 82. Rc8+ {[%emt 00:00:04] [%clk 00:00:03]} Kb2 {[%emt
00:00:04] [%clk 00:00:08]} 83. Rb8+ {[%emt 00:00:01] [%clk 00:00:04]} Kc3 {[%emt
00:00:02] [%clk 00:00:07]} 84. Rc8+ {[%emt 00:00:03] [%clk 00:00:04]} Kd4 {[%emt
00:00:02] [%clk 00:00:08]} 85. Rd8+ {[%emt 00:00:01] [%clk 00:00:05]} Ke4 {[%clk
00:00:09]} 86. Re8+ {[%emt 00:00:02] [%clk 00:00:05]}

[Site "Europe Echecs"]

[Event "Championnat d'Europe de Blitz"]
[Date "2024.12.09"]
[White "Quparadze, Giga"]
[Black "Boyer, Mahel"]
[WhiteElo "2537"]
[BlackElo "2526"]
[Round "9.13"]
[Result "1-0"]
[TimeControl "180+2"]

1. e4 {[%emt 00:14:54] [%clk 00:03:04]} Nc6 {[%emt 00:00:01] [%clk 00:03:04]} 2.
Nf3 {[%emt 00:00:01] [%clk 00:03:04]} d5 {[%emt 00:00:01] [%clk 00:03:05]} 3.
exd5 {[%emt 00:00:02] [%clk 00:03:04]} Qxd5 {[%emt 00:00:01] [%clk 00:03:06]} 4.
Nc3 {[%emt 00:00:02] [%clk 00:03:04]} Qh5 {[%emt 00:00:01] [%clk 00:03:07]} 5.
d4 {[%emt 00:00:05] [%clk 00:03:00]} Bg4 {[%emt 00:00:01] [%clk 00:03:08]} 6.
Be2 {[%emt 00:00:07] [%clk 00:02:55]} O-O-O {[%emt 00:00:02] [%clk 00:03:08]} 7.
Be3 {[%emt 00:00:01] [%clk 00:02:55]} e5 {[%emt 00:00:02] [%clk 00:03:09]} 8. d5
{[%emt 00:00:01] [%clk 00:02:56]} Nf6 {[%clk 00:03:10]} 9. O-O {[%emt 00:00:05]
[%clk 00:02:53]} Nb4 {[%emt 00:00:01] [%clk 00:03:11]} 10. h3 {[%emt 00:00:06]
[%clk 00:02:49]} Bxf3 {[%clk 00:03:12]} 11. Bxf3 {[%emt 00:00:02] [%clk
00:02:49]} Qg6 {[%clk 00:03:13]} 12. Rc1 {[%emt 00:00:18] [%clk 00:02:32]} e4
{[%emt 00:00:02] [%clk 00:03:14]} 13. Bg4+ {[%emt 00:00:02] [%clk 00:02:32]} Kb8
{[%emt 00:00:01] [%clk 00:03:15]} 14. Qd4 {[%emt 00:00:13] [%clk 00:02:21]} b6
{[%emt 00:00:04] [%clk 00:03:13]} 15. Qc4 {[%emt 00:00:05] [%clk 00:02:18]} Bd6
{[%emt 00:01:27] [%clk 00:01:49]} 16. Rfd1 {[%emt 00:00:12] [%clk 00:02:07]}
Nxg4 {[%emt 00:00:18] [%clk 00:01:33]} 17. hxg4 {[%emt 00:00:01] [%clk
00:02:07]} Qxg4 {[%emt 00:00:13] [%clk 00:01:23]} 18. a3 {[%emt 00:00:05] [%clk
00:02:05]} Na2 {[%emt 00:00:57] [%clk 00:00:27]} 19. Nxa2 {[%emt 00:00:10] [%clk
00:01:56]} Qh4 {[%emt 00:00:07] [%clk 00:00:23]} 20. Nc3 {[%emt 00:00:09] [%clk
00:01:49]} f5 {[%emt 00:00:01] [%clk 00:00:24]} 21. Qa6 {[%emt 00:00:11] [%clk
00:01:40]} Qh2+ {[%emt 00:00:17] [%clk 00:00:09]} 22. Kf1 {[%emt 00:00:01] [%clk
00:01:41]} f4 {[%emt 00:00:03] [%clk 00:00:08]} 23. Nb5 {[%emt 00:00:40] [%clk
00:01:03]} fxe3 {[%clk 00:00:09]} 24. Nxa7 {[%emt 00:00:02] [%clk 00:01:03]}
Qh1+ {[%emt 00:00:06] [%clk 00:00:04]} 25. Ke2 {[%emt 00:00:01] [%clk 00:01:04]}
Qh5+ {[%emt 00:00:02] [%clk 00:00:05]} 26. f3 {[%emt 00:00:05] [%clk 00:01:01]}
exf3+ {[%clk 00:00:06]} 27. gxf3 {[%clk 00:01:02]} c5 {[%emt 00:00:05] [%clk
00:00:04]} 28. Qxb6+ {[%emt 00:00:12] [%clk 00:00:52]} Ka8 {[%emt 00:00:01]
[%clk 00:00:05]} 29. Nc6 {[%emt 00:00:02] [%clk 00:00:51]} Qh2+ {[%emt 00:00:04]
[%clk 00:00:04]} 30. Kd3 {[%emt 00:00:01] [%clk 00:00:52]} c4+ {[%emt 00:00:02]
[%clk 00:00:04]} 31. Kxc4 {[%emt 00:00:03] [%clk 00:00:51]} Qe2+ {[%emt
00:00:01] [%clk 00:00:05]} 32. Rd3 {[%emt 00:00:02] [%clk 00:00:51]} Rd7 {[%emt
00:00:04] [%clk 00:00:03]} 33. Qa6+ {[%emt 00:00:01] [%clk 00:00:52]} 1-0

[Site "Europe Echecs"]

[Event "Championnat d'Europe de Blitz"]
[Date "2024.12.09"]
[White "Cvitan, Ognjen"]
[Black "Djukic, Nikola"]
[WhiteElo "2413"]
[BlackElo "2493"]
[Round "9.14"]
[Result "1/2-1/2"]
[TimeControl "180+2"]

1. d4 {[%emt 00:00:01] [%clk 00:03:02]} Nf6 {[%emt 00:00:02] [%clk 00:03:03]} 2.
c4 {[%clk 00:03:04]} e6 {[%emt 00:00:02] [%clk 00:03:02]} 3. Nc3 {[%emt
00:00:01]} Bb4 {[%emt 00:00:02]} 4. e3 {[%clk 00:03:02]} O-O {[%emt 00:00:02]
[%clk 00:03:02]} 5. Bd3 {[%emt 00:00:02] [%clk 00:03:02]} d5 {[%emt 00:00:01]
[%clk 00:03:03]} 6. a3 {[%emt 00:00:01] [%clk 00:03:03]} Bxc3+ {[%emt 00:00:04]
[%clk 00:03:01]} 7. bxc3 {[%emt 00:00:01] [%clk 00:03:04]} dxc4 {[%emt 00:00:02]
[%clk 00:03:01]} 8. Bxc4 {[%clk 00:03:05]} c5 {[%emt 00:00:01] [%clk 00:03:03]}
9. Ne2 {[%clk 00:03:06]} b6 {[%emt 00:00:02] [%clk 00:03:03]} 10. O-O {[%emt
00:00:04] [%clk 00:03:04]} Ba6 {[%emt 00:00:01] [%clk 00:03:04]} 11. Bxa6 {[%emt
00:00:11] [%clk 00:02:55]} Nxa6 {[%clk 00:03:04]} 12. Ng3 {[%emt 00:00:03] [%clk
00:02:54]} Qc7 {[%emt 00:00:17] [%clk 00:02:50]} 13. e4 {[%emt 00:00:05] [%clk
00:02:50]} cxd4 {[%emt 00:00:50] [%clk 00:02:03]} 14. cxd4 {[%emt 00:00:02]
[%clk 00:02:49]} Nb8 {[%emt 00:00:04] [%clk 00:02:02]} 15. a4 {[%emt 00:00:34]
[%clk 00:02:17]} Nbd7 {[%emt 00:00:03] [%clk 00:02:00]} 16. e5 {[%emt 00:00:41]
[%clk 00:01:38]} Nd5 {[%emt 00:00:02] [%clk 00:02:01]} 17. Ne4 {[%emt 00:00:03]
[%clk 00:01:37]} Rfb8 {[%emt 00:00:50] [%clk 00:01:13]} 18. Qf3 {[%emt 00:00:11]
[%clk 00:01:27]} f5 {[%emt 00:00:08] [%clk 00:01:07]} 19. Nd6 {[%emt 00:00:03]
[%clk 00:01:27]} Qc3 {[%emt 00:00:04] [%clk 00:01:05]} 20. Be3 {[%emt 00:00:17]
[%clk 00:01:12]} Nf8 {[%emt 00:00:20] [%clk 00:00:46]} 21. Nxf5 {[%emt 00:00:04]
[%clk 00:01:10]} Ng6 {[%emt 00:00:06] [%clk 00:00:42]} 22. Nd6 {[%emt 00:00:07]
[%clk 00:01:06]} Qc7 {[%emt 00:00:02] [%clk 00:00:41]} 23. Rac1 {[%emt 00:00:04]
[%clk 00:01:05]} Qd7 {[%emt 00:00:01] [%clk 00:00:42]} 24. Qg4 {[%emt 00:00:06]
[%clk 00:01:01]} Nge7 {[%emt 00:00:06] [%clk 00:00:37]} 25. Bg5 {[%emt 00:00:13]
[%clk 00:00:50]} Nf5 {[%emt 00:00:02] [%clk 00:00:38]} 26. Nxf5 {[%emt 00:00:04]
[%clk 00:00:48]} exf5 {[%emt 00:00:01] [%clk 00:00:38]} 27. Qf3 {[%clk
00:00:50]} Rc8 {[%emt 00:00:04] [%clk 00:00:37]} 28. h4 {[%emt 00:00:02] [%clk
00:00:49]} a6 {[%emt 00:00:04] [%clk 00:00:35]} 29. Rfe1 {[%emt 00:00:03] [%clk
00:00:49]} Qe6 {[%clk 00:00:35]} 30. Qd3 {[%emt 00:00:08] [%clk 00:00:43]} Nb4
{[%emt 00:00:13] [%clk 00:00:24]} 31. Qd2 {[%emt 00:00:04] [%clk 00:00:41]} Nd5
{[%emt 00:00:03] [%clk 00:00:24]} 32. g3 {[%emt 00:00:03] [%clk 00:00:39]} b5
{[%emt 00:00:02] [%clk 00:00:24]} 33. axb5 {[%clk 00:00:41]} axb5 {[%emt
00:00:01] [%clk 00:00:25]} 34. Rc5 {[%clk 00:00:42]} b4 {[%emt 00:00:03] [%clk
00:00:25]} 35. Qd3 {[%emt 00:00:07] [%clk 00:00:37]} h6 {[%emt 00:00:11] [%clk
00:00:16]} 36. Bd2 {[%clk 00:00:38]} Rxc5 {[%emt 00:00:06] [%clk 00:00:12]} 37.
dxc5 {[%clk 00:00:39]} Ra2 {[%emt 00:00:02] [%clk 00:00:11]} 38. Bc1 {[%emt
00:00:10] [%clk 00:00:32]} Kh7 {[%emt 00:00:04] [%clk 00:00:09]} 39. Qc4 {[%emt
00:00:04] [%clk 00:00:30]} Ra6 {[%emt 00:00:02] [%clk 00:00:09]} 40. Rd1 {[%emt
00:00:02] [%clk 00:00:30]} Nc3 {[%emt 00:00:01] [%clk 00:00:10]} 41. Qxe6 {[%emt
00:00:05] [%clk 00:00:27]} Rxe6 {[%emt 00:00:01] [%clk 00:00:11]} 42. Re1 {[%clk
00:00:28]} Na4 {[%emt 00:00:02] [%clk 00:00:11]} 43. Bd2 {[%emt 00:00:05]} Nxc5
{[%clk 00:00:12]} 44. Bxb4 {[%clk 00:00:27]} Nd3 {[%clk 00:00:13]} 45. Rb1
{[%emt 00:00:02] [%clk 00:00:27]} Rb6 {[%emt 00:00:03] [%clk 00:00:12]} 46. e6
{[%clk 00:00:28]} Nxb4 {[%emt 00:00:01] [%clk 00:00:12]} 47. e7 {[%emt 00:00:02]
[%clk 00:00:28]} Re6 {[%clk 00:00:13]} 48. Rxb4 {[%emt 00:00:02] [%clk
00:00:29]} Rxe7 {[%clk 00:00:14]} 1/2-1/2

[Site "Europe Echecs"]

[Event "Championnat d'Europe de Blitz"]
[Date "2024.12.09"]
[White "Koelle, Tobias"]
[Black "Kilic, Eray"]
[WhiteElo "2437"]
[BlackElo "2459"]
[Round "9.15"]
[Result "0-1"]
[TimeControl "180+2"]

1. d4 {[%clk 00:03:03]} Nf6 {[%emt 00:00:01] [%clk 00:03:03]} 2. c4 {[%clk
00:03:04]} e6 {[%emt 00:00:01] [%clk 00:03:03]} 3. Nf3 {[%emt 00:00:02] [%clk
00:03:05]} d5 {[%emt 00:00:02] [%clk 00:03:04]} 4. Nc3 {[%clk 00:03:07]} Bb4
{[%clk 00:03:04]} 5. Bg5 {[%emt 00:00:01] [%clk 00:03:08]} dxc4 {[%emt 00:00:02]
[%clk 00:03:05]} 6. e4 {[%emt 00:00:03] [%clk 00:03:06]} b5 {[%emt 00:00:02]
[%clk 00:03:06]} 7. a4 {[%clk 00:03:07]} c6 {[%emt 00:00:03] [%clk 00:03:05]} 8.
e5 {[%emt 00:00:03] [%clk 00:03:06]} h6 {[%emt 00:00:01] [%clk 00:03:05]} 9.
exf6 {[%emt 00:00:01] [%clk 00:03:08]} hxg5 {[%emt 00:00:01] [%clk 00:03:05]}
10. fxg7 {[%emt 00:00:02] [%clk 00:03:09]} Rg8 {[%emt 00:00:01] [%clk 00:03:06]}
11. h4 {[%emt 00:00:03] [%clk 00:03:08]} g4 {[%emt 00:00:03] [%clk 00:03:04]}
12. Ne5 {[%emt 00:00:14] [%clk 00:02:56]} Rxg7 {[%emt 00:00:02] [%clk 00:03:04]}
13. Nxg4 {[%emt 00:00:12] [%clk 00:02:46]} Nd7 {[%emt 00:00:24] [%clk 00:02:42]}
14. Qf3 {[%emt 00:00:07] [%clk 00:02:41]} Bb7 {[%emt 00:00:09] [%clk 00:02:35]}
15. h5 {[%emt 00:00:31] [%clk 00:02:13]} Qg5 {[%emt 00:00:06] [%clk 00:02:31]}
16. h6 {[%emt 00:00:02] [%clk 00:02:13]} Rh7 {[%emt 00:00:03] [%clk 00:02:29]}
17. axb5 {[%emt 00:00:13] [%clk 00:02:03]} Qxb5 {[%emt 00:00:26] [%clk
00:02:05]} 18. Qe4 {[%emt 00:00:25] [%clk 00:01:39]} Rh8 {[%emt 00:00:27] [%clk
00:01:40]} 19. Qe3 {[%emt 00:00:43] [%clk 00:00:59]} O-O-O {[%emt 00:00:17]
[%clk 00:01:24]} 20. Be2 {[%emt 00:00:02] [%clk 00:01:00]} f5 {[%emt 00:00:02]
[%clk 00:01:24]} 21. Ne5 {[%emt 00:00:22] [%clk 00:00:39]} Qb6 {[%emt 00:01:00]
[%clk 00:00:26]} 22. Nxc4 {[%emt 00:00:03] [%clk 00:00:39]} Qc7 {[%clk
00:00:27]} 23. Rxa7 {[%emt 00:00:04] [%clk 00:00:36]} Kb8 {[%emt 00:00:03] [%clk
00:00:27]} 24. Ra1 {[%emt 00:00:01] [%clk 00:00:37]} c5 {[%emt 00:00:09] [%clk
00:00:20]} 25. Kf1 {[%emt 00:00:16] [%clk 00:00:23]} cxd4 {[%emt 00:00:03] [%clk
00:00:18]} 26. Qxd4 {[%clk 00:00:24]} Bc5 {[%emt 00:00:02] [%clk 00:00:19]} 27.
Qh4 {[%emt 00:00:02] [%clk 00:00:24]} Rdg8 {[%emt 00:00:09] [%clk 00:00:11]} 28.
Rh2 {[%emt 00:00:02] [%clk 00:00:25]} Be7 {[%emt 00:00:04] [%clk 00:00:10]} 29.
Qh3 {[%emt 00:00:05] [%clk 00:00:21]} Qc6 {[%emt 00:00:05] [%clk 00:00:06]} 30.
Na5 {[%emt 00:00:06] [%clk 00:00:18]} Qc7 {[%emt 00:00:03] [%clk 00:00:06]} 31.
Nxb7 {[%emt 00:00:02] [%clk 00:00:17]} Qxb7 {[%emt 00:00:01] [%clk 00:00:07]}
32. Bf3 {[%emt 00:00:01] [%clk 00:00:18]} Qb4 {[%emt 00:00:02] [%clk 00:00:06]}
33. Qh5 {[%emt 00:00:07] [%clk 00:00:14]} Ne5 {[%emt 00:00:03] [%clk 00:00:05]}
34. Re1 {[%emt 00:00:03] [%clk 00:00:13]} Qc4+ {[%emt 00:00:02] [%clk 00:00:05]}
35. Kg1 {[%emt 00:00:03] [%clk 00:00:12]} Rg5 {[%clk 00:00:06]} 36. Qh3 {[%emt
00:00:01] [%clk 00:00:12]} Rxh6 {[%emt 00:00:02] [%clk 00:00:06]} 37. Qxh6
{[%emt 00:00:02] [%clk 00:00:12]} Nxf3+ {[%clk 00:00:07]} 38. Kh1 {[%clk
00:00:14]} Nxe1 {[%emt 00:00:01] [%clk 00:00:08]} 39. Qh8+ {[%emt 00:00:05]
[%clk 00:00:11]} 0-1

[Site "Europe Echecs"]